[Event "Kezmarok Chess Open 2022"]
[Site "Kezmarok"]
[Date "2022.09.24"]
[Round "1.8"]
[White "Kovac, Lubomir"]
[Black "Straka, Simon"]
[Result "1/2-1/2"]
[ECO "D58"]
[WhiteElo "2091"]
[BlackElo "1732"]
[Annotator "TA"]
[PlyCount "110"]
[EventDate "2022.09.24"]
[EventType "swiss"]
[EventCountry "SVK"]
[SourceTitle "playchess.com"]
[Source "ChessBase"]
[SourceQuality "1"]
[TimeControl "40/5400+30:1800+30"]

{[%evp 22,110,11,12,18,8,12,0,13,0,3,-10,34,30,41,46,56,51,50,52,62,67,110,56,58,53,59,54,62,50,68,75,76,36,70,19,16,8,14,5,6,0,34,10,28,28,28,13,43,34,58,13,46,4,61,14,14,13,26,17,17,0,0,0,0,0,0,0,0,0,0,0,0,-15,0,0,0,0,0,0,0,0,0,0,0,-35,-35,-35,-35,-35,0]} 1. d4 Nf6 2. c4 e6 3. Nf3 d5 4. Nc3 Be7 5. Bg5 h6 6. Bh4 O-O 7. e3 b6 8. Bd3 Bb7 9. O-O Nbd7 10. Qe2 c5 11. Rfd1 Ne4 12. Bxe7 Qxe7 {D58: Queen's Gambit Declined: Tartakower Defence.} 13. cxd5 exd5 14. Rac1 Rfe8 {The position is equal.} 15. Bb1 {[#]} Rad8 $146 ({Predecessor:} 15... Ndf6 16. dxc5 Nxc3 17. Rxc3 bxc5 18. Qb5 Rac8 19. h3 d4 20. exd4 Bxf3 21. Rxf3 cxd4 {1-0 (60) Lenderman,A (2627)-Randolph,J Blue Ash 2015}) 16. dxc5 Ndxc5 17. Nd4 Qg5 18. b4 Nxc3 19. Rxc3 Ne4 20. Rc7 Re7 21. Rdc1 Rdd7 {[#]} 22. Rxd7 (22. Rc8+ $1 $16 {[%mdl 512]} Bxc8 23. Rxc8+ Kh7 24. f3) 22... Rxd7 $14 23. Qb5 Qd8 24. Bxe4 dxe4 25. Qe5 Qe7 26. Qxe7 {White has more active pieces.} Rxe7 {[%mdl 4096] Endgame KRB-KRN} 27. Kf1 g6 28. Ke1 ({White should play} 28. g4 $14) 28... Kg7 $11 29. a3 a6 30. Kd2 Rd7 31. Rc2 Bd5 32. Kc1 b5 33. Rc5 h5 34. h4 Kh6 35. Kb2 Kg7 36. Kc2 (36. a4 $5) 36... Kh6 37. Ne2 Kg7 ({Better is} 37... Bc4 $11 38. Nd4 Bd5) 38. Nf4 (38. Nc3 $1 $14 Bc4 39. Rc6) 38... Bb7 39. Kc1 Kh6 40. Rc2 Kg7 41. Rd2 Rxd2 42. Kxd2 {[#] Kc3 is the strong threat. KB-KN} Kf6 43. Kc3 {Threatens to win with Kd4.} Ke5 44. Ne2 Bc6 45. Nd4 Bd5 46. Kd2 Kf6 47. Ne2 Ke5 48. Nf4 Bc6 49. Kc3 Bd7 50. Ne2 Bc6 51. Ng1 Bb7 52. Nh3 Bd5 53. Ng5 f6 {Black is slightly better.} 54. Nh3 Bf7 55. Kd2 Kd5 {Weighted Error Value: White=0.12 (very precise) /Black=0.13 (very precise)} 1/2-1/2

[Event "Kezmarok Chess Open 2022"]
[Site "Kezmarok"]
[Date "2022.09.24"]
[Round "1.9"]
[White "Kapolkova, Greta"]
[Black "Demeter, Peter"]
[Result "0-1"]
[ECO "B72"]
[WhiteElo "1723"]
[BlackElo "2067"]
[Annotator "TA"]
[PlyCount "118"]
[EventDate "2022.09.24"]
[EventType "swiss"]
[EventCountry "SVK"]
[SourceTitle "playchess.com"]
[Source "ChessBase"]
[SourceQuality "1"]
[TimeControl "40/5400+30:1800+30"]

{[%evp 20,118,33,31,39,21,39,-19,-21,-17,-22,-68,0,0,-9,-8,26,-19,0,0,0,0,0,0,6,5,23,0,0,0,0,0,0,0,0,-6,0,-20,-22,-20,-15,-17,0,-8,-8,-8,-8,-8,-8,-88,-8,-7,-8,-40,-27,-37,0,-128,-118,-123,-85,-226,-231,-216,-108,-164,-212,-179,-135,-113,-72,-160,-164,-139,-17,-250,-240,-490,-376,-462,-469,-407,-352,-973,-888,-12840,-12840,-12841,-12839,-12838,-12838,-12841,-12842,-12844,-12844,-12845,-12845,-12845,-12846,-12846,-12847]} 1. e4 c5 2. Nf3 d6 3. d4 cxd4 4. Nxd4 Nf6 5. Nc3 g6 6. Be3 Bg7 7. Be2 O-O 8. Qd2 Nc6 9. f3 Nxd4 10. Bxd4 Be6 11. g4 Qa5 {B76: Sicilian Dragon: Yugoslav Attack, 9 g4 and 9 0-0-0.} 12. h4 Rfc8 13. g5 ({Better is} 13. a3 $14) 13... Nh5 $11 {The position is equal.} 14. Bxg7 Kxg7 15. f4 (15. Bd3 $11 {should be considered.}) 15... Ng3 {Black is more active.} (15... Qb4 $1 $15 16. O-O-O Rxc3) 16. Rg1 Nxe2 17. Nxe2 {[#]} Qc5 $146 ({Predecessor:} 17... Qxd2+ 18. Kxd2 Rc4 19. Ng3 Rac8 20. c3 b5 21. a3 a5 22. h5 b4 23. h6+ Kf8 24. axb4 axb4 25. Rac1 bxc3+ 26. Rxc3 Rxc3 27. bxc3 Bd7 {½-½ (27) Payet,J (1893)-Moret,V (2175) St Denis 2014}) 18. Qd4+ (18. h5 $5) 18... Qxd4 19. Nxd4 Rc4 20. c3 Bd7 {[#] Strongly threatening ...e5.} 21. Kd2 Rac8 22. Ke3 e5 23. Nf3 Bc6 24. Nd2 exf4+ 25. Kxf4 Rc5 26. Rge1 Re8 27. Re3 h6 28. b4 Rce5 29. Rae1 hxg5+ 30. hxg5 d5 31. exd5 Rf5+ 32. Kg4 Rxe3 33. Rxe3 Bxd5 {[%mdl 4096] Endgame KRB-KRN} 34. Ne4 (34. a4 $11) 34... Bxa2 (34... Be6 $17) 35. Nd6 {[%csl LRb7,LRf5]} Rf1 36. Ne8+ Kf8 {[#] aiming for ...Be6+.} 37. Nc7 {Inhibits Be6+.} Bb1 38. Nd5 (38. Re8+ $11 {keeps the balance.} Kg7 39. Rb8) 38... Bf5+ $17 39. Kg3 Rg1+ 40. Kf4 (40. Kf2 $17 {is a better defense.} Rc1 41. Nf4) 40... Rg4+ $19 41. Ke5 Kg7 (41... Rxg5 $19 {...Be6+ is the strong threat.} 42. Kd6 Bb1) 42. Kd6 (42. Nf6 $17 Rxg5 43. Ne8+ Kg8 44. Kf6) 42... Rxg5 43. Re7 b5 44. Rxa7 Be6 45. Nc7 (45. c4 $142) 45... Bc4 $17 46. Ne8+ Kh6 ({Black should play} 46... Kf8 $17 {And now ...Rd5+ would win.} 47. Nf6 Rg3) 47. Nf6 {Inhibits Rd5+.} (47. Kc6 $1 $11) 47... Rg3 $19 48. Ne4 $2 (48. Ra3) 48... Rd3+ 49. Ke5 f5 50. Nd6 Rxc3 51. Rb7 $2 (51. Ra1) 51... Kg5 {White must now prevent ...Re3+. Black is clearly winning.} 52. Nxb5 Bxb5 53. Rxb5 {KR-KR} Re3+ 54. Kd4 Re8 55. Rd5 Kg4 56. b5 f4 {[%cal Bf5f4,Bf4f3][%mdl 32]} 57. Rd6 g5 58. b6 f3 59. Rf6 Kg3 {Weighted Error Value: White=0.59/Black=0.19 (very precise)} 0-1

[Event "Kezmarok Chess Open 2022"]
[Site "Kezmarok"]
[Date "2022.09.24"]
[Round "1.10"]
[White "Walter, Ema"]
[Black "Smetana, Peter"]
[Result "1/2-1/2"]
[ECO "B54"]
[WhiteElo "2062"]
[BlackElo "1715"]
[Annotator "TA"]
[PlyCount "57"]
[EventDate "2022.09.24"]
[EventType "swiss"]
[EventCountry "SVK"]
[SourceTitle "playchess.com"]
[Source "ChessBase"]
[SourceQuality "1"]
[TimeControl "40/5400+30:1800+30"]

{[%evp 13,57,0,9,5,44,20,25,13,16,16,20,20,18,24,27,12,23,3,25,9,12,6,7,10,41,42,42,20,14,10,15,0,0,0,0,0,0,0,0,0,0,-1,0,0,0,-4]} 1. e4 {[%emt 0:00:04]} c5 {[%emt 0:00:19]} 2. Nf3 {[%emt 0:00:06]} d6 {[%emt 0:00:32]} 3. d4 {[%emt 0:01:19]} cxd4 {[%emt 0:00:59]} 4. Nxd4 {[%emt 0:00:07]} Nc6 {[%emt 0:01:25]} 5. Nc3 {[%emt 0:00:20]} e5 {[%emt 0:00:21]} 6. Nf3 {[%emt 0:01:44]} Be7 {[%emt 0:01:18]} 7. Be2 {[%emt 0:03:16]} Nf6 {[%emt 0:01:39]} 8. Bg5 {[%emt 0:02:23] B58: Classical Sicilian: 6 Be2.} a6 {[%emt 0:01:58]} 9. Qd2 {[%emt 0:06:51]} O-O {[%emt 0:17:32]} 10. Rd1 {[%emt 0:23:20] [#] White has an edge.} Ne8 $146 {[%emt 0:08:19]} ({Predecessor:} 10... Bg4 11. Bxf6 gxf6 12. Nd5 Bxf3 13. Bxf3 Nd4 14. Bg4 f5 15. exf5 Bg5 16. Ne3 Qf6 {1-0 (46) Fernandez Ponce,L (2053)-Ronderos Gonzalez,J Gijon 2003}) 11. Bxe7 {[%emt 0:15:27]} Qxe7 {[%emt 0:01:04]} 12. Nd5 {[%emt 0:00:19]} Qd8 {[%emt 0:01:13]} 13. O-O {[%emt 0:08:00]} Be6 {[%emt 0:04:06]} 14. c4 {[%emt 0:05:51]} Rc8 {[%emt 0:11:01]} 15. Rfe1 {[%emt 0:05:21]} Bxd5 {[%emt 0:15:15]} 16. exd5 {[%emt 0:10:02]} Ne7 {[%emt 0:01:43] [#]} 17. Nxe5 $1 {[%emt 0:02:28]} dxe5 {[%emt 0:00:23]} 18. d6 {[%emt 0:00:04]} Nf6 {[%emt 0:00:33] aiming for ...Nc6.} 19. dxe7 {[%emt 0:01:44]} Qxe7 {[%emt 0:00:13]} 20. Qd6 {[%emt 0:04:19]} Qxd6 {[%emt 0:01:51] The position is equal.} 21. Rxd6 {[%emt 0:00:08]} Rfd8 {[%emt 0:00:35]} 22. Red1 {[%emt 0:00:20]} Rxd6 {[%emt 0:00:27]} 23. Rxd6 $11 {[%emt 0:00:02][%mdl 4096] Endgame KRB-KRN} Kf8 {[%emt 0:00:26]} 24. f3 {[%emt 0:01:51]} Ke7 {[%emt 0:00:25]} 25. Rb6 {[%emt 0:01:03]} Rc7 {[%emt 0:00:22]} 26. Kf2 {[%emt 0:00:58]} Nd7 {[%emt 0:00:42]} 27. Rb3 {[%emt 0:00:25]} f6 {[%emt 0:02:00]} 28. Re3 {[%emt 0:00:37]} Ke6 {[%emt 0:02:10]} 29. f4 {[%emt 0:01:48] Weighted Error Value: White=0.06 (flawless) /Black=0.07 (flawless)} 1/2-1/2

[Event "Kezmarok Chess Open 2022"]
[Site "Kezmarok"]
[Date "2022.09.24"]
[Round "1.11"]
[White "Juracak, David"]
[Black "Sosovickova, Jana"]
[Result "1/2-1/2"]
[ECO "D47"]
[WhiteElo "1708"]
[BlackElo "2039"]
[Annotator "TA"]
[PlyCount "54"]
[EventDate "2022.09.24"]
[EventType "swiss"]
[EventCountry "SVK"]
[SourceTitle "playchess.com"]
[Source "ChessBase"]
[SourceQuality "1"]
[TimeControl "40/5400+30:1800+30"]

{[%evp 16,54,25,31,68,14,3,8,0,21,4,7,30,29,37,23,17,14,83,25,75,-7,60,31,86,85,85,82,86,81,106,92,113,100,110,86,118,122,124,117,291]} 1. d4 {[%emt 0:00:03]} d5 {[%emt 0:00:25]} 2. c4 {[%emt 0:00:07]} e6 {[%emt 0:00:07]} 3. Nf3 {[%emt 0:00:12]} Nf6 {[%emt 0:00:26]} 4. Nc3 {[%emt 0:00:50]} c6 {[%emt 0:00:51]} 5. e3 {[%emt 0:01:38]} Nbd7 {[%emt 0:03:10]} 6. Bd3 {[%emt 0:04:22]} dxc4 {[%emt 0:04:04]} 7. Bxc4 {[%emt 0:00:09]} b5 {[%emt 0:00:59]} 8. Bd3 {[%emt 0:00:20]} Be7 {[%emt 0:03:45]} 9. O-O {[%emt 0:00:16]} O-O {[%emt 0:00:56] D47: Semi-Slav: Meran System.} 10. b3 {[%emt 0:01:23]} (10. e4 $14) 10... Bb7 $11 {[%emt 0:02:53]} 11. Bb2 {[%emt 0:00:19]} a6 {[%emt 0:07:07] The position is equal.} 12. Ne4 {[%emt 0:17:19]} Nxe4 {[%emt 0:06:37]} 13. Bxe4 {[%emt 0:00:33]} Nf6 {[%emt 0:02:14]} 14. Bd3 {[%emt 0:02:11] [#]} Nd5 $146 {[%emt 0:06:03]} ({Predecessor:} 14... Rc8 15. Be2 Qb6 16. Rc1 Rfd8 17. Qe1 Ne4 18. Ne5 c5 19. f3 Nf6 20. Bc3 cxd4 21. Bxd4 Qd6 22. Rxc8 Rxc8 {1-0 (32) Sefeloge,M (1846)-Roediger,T (2035) Wiesbaden 2016}) 15. Rc1 {[%emt 0:01:53]} Rc8 {[%emt 0:02:38]} 16. Bb1 {[%emt 0:10:03]} (16. Ne5 {seems wilder.} c5 17. Qf3 cxd4 18. Qe4) 16... g6 {[%emt 0:07:15]} (16... Nf6 $1 $11 {keeps the balance.}) 17. Re1 {[%emt 0:06:22]} (17. Ne5 $16) 17... Bf6 {[%emt 0:04:18]} (17... Nb6 $11 {remains equal.}) 18. Re2 {[%emt 0:02:02]} (18. e4 $16 Nb6 19. Bc3) 18... a5 {[%emt 0:07:24]} ({Black should play} 18... c5 $11) 19. Nd2 {[%emt 0:04:42][%cal Bf3d2,Bd2e4,Be4c5][%mdl 32]} Qb6 {[%emt 0:07:23]} (19... c5 $14) 20. Ne4 $16 {[%emt 0:02:46] White is better.} Be7 {[%emt 0:03:20]} 21. Nc5 {[%emt 0:00:24]} Rfd8 {[%emt 0:00:41][%cal Od5e3] Prevents Nd7.} 22. Rd2 {[%emt 0:01:49]} Bf8 {[%emt 0:09:18]} 23. Qf3 {[%emt 0:19:38]} Bg7 {[%emt 0:02:50]} 24. Be4 {[%emt 0:01:59]} Rc7 {[%emt 0:03:52]} 25. Rdd1 {[%emt 0:03:37]} Rdc8 {[%emt 0:02:44]} 26. h4 {[%emt 0:06:48]} Nf6 {[%emt 0:01:30] Prevents h5.} 27. Bb1 {[%emt 0:01:26] White has more active pieces.} Rd8 $2 {[%emt 0:01:12][%mdl 32768] Weighted Error Value: White=0.19 (very precise) /Black=0.24 (precise) . An unexpected result.} (27... Qa7 $16) 1/2-1/2

[Event "Kezmarok Chess Open 2022"]
[Site "Kezmarok"]
[Date "2022.09.24"]
[Round "1.12"]
[White "Rakovsky, Jakub"]
[Black "Velychko, Semen"]
[Result "0-1"]
[ECO "B32"]
[WhiteElo "2012"]
[BlackElo "1604"]
[Annotator "TA"]
[PlyCount "68"]
[EventDate "2022.09.24"]
[EventType "swiss"]
[EventCountry "SVK"]
[SourceTitle "playchess.com"]
[Source "ChessBase"]
[SourceQuality "1"]
[TimeControl "40/5400+30:1800+30"]

{[%evp 16,68,46,20,54,0,0,165,0,-177,-179,-168,-154,-171,0,-317,-288,-357,-354,-327,-304,-254,0,-358,-341,-700,-265,-242,-241,-390,-385,-373,-384,-439,-435,-448,-447,-555,-557,-555,-545,-537,-543,-628,-592,-594,-585,-756,-749,-1211,-1154,-2450,-2188,-29986,-2508]} 1. e4 {[%emt 0:00:07]} c5 {[%emt 0:00:14]} 2. Nf3 {[%emt 0:00:06][%cal Bg1f3,Bf3d4,Bd4b5][%mdl 32]} Nc6 {[%emt 0:00:12]} 3. d4 {[%emt 0:00:05]} cxd4 {[%emt 0:00:23]} 4. Nxd4 {[%emt 0:00:08]} e5 {[%emt 0:00:24]} 5. Nb5 {[%emt 0:00:43]} d6 {[%emt 0:00:17]} 6. N1c3 {[%emt 0:01:08][%cal Bb1c3,Bc3d5,Bd5f6][%mdl 32]} a6 {[%emt 0:00:10]} 7. Na3 {[%emt 0:00:06]} b5 {[%emt 0:00:38]} 8. Nd5 {[%emt 0:00:08]} Nge7 {[%emt 0:00:40]} 9. Bg5 {[%emt 0:02:55]} f6 {[%emt 0:01:09] B32: Sicilian: Löwenthal and Kalashnikov Variations.} 10. Qh5+ {[%emt 0:04:25]} (10. Be3 $14) 10... g6 $1 $11 {[%emt 0:00:42]} 11. Nxf6+ {[%emt 0:00:31]} Kf7 {[%emt 0:00:05] White is clearly better.} 12. Qf3 {[%emt 0:17:44]} (12. Qd1 $1 $11) 12... Nd4 $19 {[%emt 0:00:16]} 13. Qc3 {[%emt 0:03:55] [#]} Ne6 $146 {[%emt 0:07:11]} (13... Bg7 14. Nd5 Nxd5 15. Bxd8 $17 (15. Qxd4 exd4 16. Bxd8 Rxd8 $17)) ({Predecessor:} 13... h6 14. Be3 b4 15. Qxb4 Nec6 16. Qc4+ Be6 17. Qa4 Kxf6 18. c3 Nb5 19. Bxb5 axb5 20. Qxb5 {1-0 (38) Flores Quillas,D-Jimenez,J Pocos de Caldas 2013}) 14. f4 {[%emt 0:05:27]} h6 $2 {[%emt 0:10:47]} ({Stronger than} 14... Bg7 15. O-O-O exf4 16. e5 $17) ({Black should try} 14... exf4 $19 15. Ng4 Nxg5 16. Qf6+ Ke8 17. Qxg5 Bg7) 15. Be2 $2 {[%emt 0:09:58][%mdl 8192]} hxg5 {[%emt 0:01:05]} 16. fxe5 {[%emt 0:00:04]} Nf4 {[%emt 0:09:00]} 17. Rd1 {[%emt 0:03:46]} Ng8 {[%emt 0:10:52]} 18. Nd5 {[%emt 0:10:31]} Nxe2 {[%emt 0:04:06]} ({Better is} 18... Nxg2+ $19 19. Kf1 Rh3) 19. e6+ $2 {[%emt 0:05:59][%mdl 8192]} (19. Kxe2 $11 {and White has nothing to worry.} Bg4+ 20. Kd3) 19... Bxe6 {[%emt 0:02:08]} 20. Qxh8 {[%emt 0:03:06]} (20. Kxe2 Bg7 21. Rhf1+ Nf6 22. Nxf6 Bxf6 23. Rxf6+ Qxf6 24. Rf1 Bg4+ 25. Ke1) 20... Bxd5 $2 {[%emt 0:01:46]} (20... Bg7 21. Qh7 Nf6 22. Nxf6 Qxf6) 21. Rxd5 {[%emt 0:02:17]} Nf4 {[%emt 0:00:32] [#] And now ...Bg7 would win. Chess con chili.} (21... Bg7 $2 22. Qh3 Nf4 23. O-O) 22. Qd4 {[%emt 0:07:18]} (22. Qh7+ Bg7 23. O-O Qb6+ 24. Kh1 Nf6 25. Rxf4 gxf4 $19) (22. O-O $142) 22... Nxd5 {[%emt 0:01:09]} 23. Qxd5+ {[%emt 0:00:23]} Kg7 {[%emt 0:00:23]} 24. Rf1 {[%emt 0:00:37]} Nf6 {[%emt 0:01:51]} ({Don't go for} 24... Kh8 $2 25. Rf7 Nh6 26. Qd4+ Kg8 27. Rb7 $19) 25. Qb7+ {[%emt 0:02:27]} Be7 {[%emt 0:01:00]} 26. c3 {[%emt 0:00:30]} b4 {[%emt 0:04:23]} 27. Nc2 {[%emt 0:01:22]} bxc3 {[%emt 0:01:59]} 28. Nd4 {[%emt 0:00:11] [#] Black must now prevent Ne6+.} Qe8 {[%emt 0:11:33] Threatens to win with ...Rb8.} 29. Nc6 {[%emt 0:04:22] Inhibits Rb8.} Nd7 {[%emt 0:03:54]} 30. bxc3 {[%emt 0:02:50]} Bf6 {[%emt 0:00:42] Prevents e5.} 31. Kd2 {[%emt 0:00:21]} Kh6 {[%emt 0:03:23] Hoping for ...Nc5.} 32. Rf3 {[%emt 0:02:10]} g4 {[%emt 0:01:07]} 33. Rg3 {[%emt 0:01:26]} Nc5 {[%emt 0:01:01]} 34. Qb6 {[%emt 0:00:35]} Nxe4+ {[%emt 0:00:08] Weighted Error Value: White=1.06/Black=0.66} (34... Qxe4 $142 35. Qb4 Nb3+ 36. Kd1 Qb1+ 37. Ke2 Re8+ 38. Ne5 Rxe5+ 39. Re3 Qc2+ 40. Kf1 Qc1+ 41. Kf2 Qxe3+ 42. Kf1 Qe1#) 0-1

[Event "Kezmarok Chess Open 2022"]
[Site "Kezmarok"]
[Date "2022.09.24"]
[Round "1.13"]
[White "Mazak, Ryan"]
[Black "Elias, David"]
[Result "0-1"]
[ECO "B20"]
[WhiteElo "1590"]
[BlackElo "1988"]
[Annotator "TA"]
[PlyCount "68"]
[EventDate "2022.09.24"]
[EventType "swiss"]
[EventCountry "SVK"]
[SourceTitle "playchess.com"]
[Source "ChessBase"]
[SourceQuality "1"]
[TimeControl "40/5400+30:1800+30"]

{[%evp 9,68,-9,-12,-21,-2,4,9,4,7,-10,-6,-14,-8,-16,8,5,18,26,19,-35,-60,-91,-95,-95,-93,-93,-102,-93,-101,-117,-70,-112,-66,-74,-47,-29,-50,-51,0,-258,-226,-558,-533,-556,-448,-600,-587,-1015,-780,-1087,-1018,-29984,-29985,-29985,-29982,-29978,-29982,-29983,-2018,-29985,-29985]} 1. e4 {[%emt 0:00:06]} c5 {[%emt 0:00:05]} 2. c4 {[%emt 0:00:48]} d6 {[%emt 0:01:16]} 3. Nc3 {[%emt 0:00:32]} Nc6 {[%emt 0:00:06]} 4. d3 {[%emt 0:01:59]} g6 {[%emt 0:00:24]} 5. f4 {[%emt 0:02:48]} Bg7 {[%emt 0:01:07]} 6. g3 {[%emt 0:04:03] B20: Sicilian: Unusual White 2nd moves.} Nf6 {[%emt 0:03:17]} 7. Bg2 {[%emt 0:07:01]} (7. Nge2 {looks sharper.} Bg4 8. Bg2 Nh5 9. Be3) 7... Bd7 {[%emt 0:00:57]} 8. Nge2 {[%emt 0:02:57] The position is equal.} a6 {[%emt 0:01:44]} 9. O-O {[%emt 0:06:49]} Rb8 {[%emt 0:02:12]} 10. h3 {[%emt 0:03:56]} b5 {[%emt 0:01:52]} 11. Rb1 {[%emt 0:04:23] [#]} Qc8 $146 {[%emt 0:15:02]} ({Predecessor:} 11... b4 12. Nd5 e6 13. Ne3 a5 14. g4 a4 15. Qxa4 Ra8 16. Qb3 Nd4 17. Nxd4 Ba4 {0-1 (39) Spanton,T (2104)-Cavadini,S Lugano 2000}) 12. Kh2 {[%emt 0:03:24]} h5 {[%emt 0:01:36]} (12... b4 $5 {[%cal Rb4c3]} 13. Nd5 O-O $11) 13. b3 {[%emt 0:04:50]} Nd4 {[%emt 0:30:51]} 14. Nxd4 {[%emt 0:08:14]} ({White should play} 14. cxb5 $11 h4 15. g4) 14... Ng4+ $1 $15 {[%emt 0:04:16]} 15. hxg4 {[%emt 0:06:29]} hxg4+ {[%emt 0:00:34]} ({Much weaker is} 15... Bxd4 $6 16. g5 Bxc3 17. Qc2 $11) 16. Kg1 {[%emt 0:00:33] aiming for Nde2.} Bxd4+ {[%emt 0:00:06]} 17. Rf2 {[%emt 0:00:23] Threatens to win with Nd5.} Bxc3 {[%emt 0:01:01] Black is more active.} 18. Bb2 {[%emt 0:01:22]} Bxb2 {[%emt 0:01:15]} 19. Rbxb2 {[%emt 0:00:38]} Be6 {[%emt 0:03:19]} (19... Rh5 $17) 20. Bh1 {[%emt 0:06:37] [#]} Rh3 {[%emt 0:01:09]} ({Black should try} 20... f6 $1 $17 21. Rbc2 Kf7) 21. Rh2 {[%emt 0:05:37]} bxc4 {[%emt 0:05:10]} 22. dxc4 {[%emt 0:02:10]} Rxg3+ {[%emt 0:04:14]} 23. Bg2 $1 {[%emt 0:02:09] Black must now prevent Rh8+.} Kd7 $1 {[%emt 0:01:14]} 24. Kf2 $2 {[%emt 0:00:20][%mdl 8192]} (24. Qe1 $11 {and White has nothing to worry.} Rh3 25. Bxh3 gxh3 26. Rbd2) 24... Rc3 $19 {[%emt 0:00:20][%cal Bg3c3,Bc3c4,Bc4d4][%mdl 32] And now ...g3+ would win.} 25. Qd2 $2 {[%emt 0:00:20]} (25. Kg1) 25... g3+ {[%emt 0:00:31]} 26. Kf1 {[%emt 0:00:57]} Rxc4 {[%emt 0:02:50] Hoping for ...Rd4.} 27. Rh1 {[%emt 0:02:34]} Rd4 {[%emt 0:01:08]} 28. Qc2 {[%emt 0:01:49]} Qb7 {[%emt 0:01:05]} 29. f5 {[%emt 0:03:03]} gxf5 {[%emt 0:00:20]} 30. exf5 {[%emt 0:01:09]} Bd5 {[%emt 0:00:17]} 31. Rg1 {[%emt 0:02:20]} Qb5+ {[%emt 0:01:33]} 32. Ke1 {[%emt 0:00:52]} Qb4+ {[%emt 0:00:15]} 33. Ke2 {[%emt 0:02:03] [#]} Bc4+ $1 {[%emt 0:00:51]} 34. Ke3 {[%emt 0:00:46]} (34. bxc4 Qxb2) 34... Rd3+ {[%emt 0:00:23] Weighted Error Value: White=1.13/Black=0.24 (precise)} 0-1

[Event "Kezmarok Chess Open 2022"]
[Site "Kezmarok"]
[Date "2022.09.24"]
[Round "1.14"]
[White "Fizer, Marek"]
[Black "Kolek, Stefan"]
[Result "1-0"]
[ECO "C05"]
[WhiteElo "1963"]
[BlackElo "1524"]
[Annotator "TA"]
[PlyCount "57"]
[EventDate "2022.09.24"]
[EventType "swiss"]
[EventCountry "SVK"]
[SourceTitle "playchess.com"]
[Source "ChessBase"]
[SourceQuality "1"]
[TimeControl "40/5400+30:1800+30"]

{[%evp 15,57,27,27,29,73,69,94,97,113,52,111,103,110,99,111,75,74,63,110,18,0,1,16,-11,16,-54,-65,-100,-88,-88,-93,-98,-86,-85,-25,-116,-4,-7,255,265,279,295,2809,2729]} 1. e4 {[%emt 0:00:06]} e6 {[%emt 0:00:16]} 2. d4 {[%emt 0:00:12]} d5 {[%emt 0:00:16]} 3. Nd2 {[%emt 0:00:13]} Nf6 {[%emt 0:00:20]} 4. e5 {[%emt 0:00:17]} Nfd7 {[%emt 0:00:16][%cal Bf6d7,Bd7f8,Bf8g6][%mdl 32]} 5. f4 {[%emt 0:00:29]} c5 {[%emt 0:00:13]} 6. c3 {[%emt 0:00:18]} Nc6 {[%emt 0:00:17]} 7. Ndf3 {[%emt 0:00:43]} Be7 {[%emt 0:00:44]} 8. Bd3 {[%emt 0:00:36]} Qb6 {[%emt 0:03:31][%cal Rc5d4]} 9. Ne2 {[%emt 0:00:52] C05: French Tarrasch: 3...Nf6 4 e5 Nfd7, 5 f4 and 5 Bd3 sidelines.} Nf8 {[%emt 0:01:25]} 10. O-O {[%emt 0:01:10]} Ng6 {[%emt 0:00:30]} 11. Kh1 {[%emt 0:02:10] White is better.} Bd7 {[%emt 0:00:25] [#]} 12. a4 $146 {[%emt 0:13:18]} (12. dxc5 $16 Bxc5 13. b4) ({Predecessor:} 12. Bc2 O-O-O 13. Ng3 Nh4 14. Nxh4 Bxh4 15. Ne2 Kb8 16. Rf3 g6 17. Rb1 Rc8 18. dxc5 Qxc5 {1-0 (41) Weersing,A (1862)-Whiteside,R (1807) England 2019}) 12... a6 {[%emt 0:05:26]} (12... c4 $14 13. Bc2 O-O) 13. dxc5 $16 {[%emt 0:12:45]} Bxc5 {[%emt 0:00:42]} 14. b4 {[%emt 0:00:44]} Be7 {[%emt 0:00:58]} 15. Nfd4 {[%emt 0:05:31]} O-O {[%emt 0:02:03]} 16. Be3 {[%emt 0:02:27]} Qd8 {[%emt 0:02:44] [#]} (16... Qc7 $14) 17. g4 {[%emt 0:03:34] White is more active.} (17. Rf3 $1 $16) 17... f6 $11 {[%emt 0:01:14]} 18. exf6 {[%emt 0:02:39]} Bxf6 {[%emt 0:00:32]} 19. Qc2 {[%emt 0:08:51]} Qe8 {[%emt 0:01:06]} 20. Nb3 {[%emt 0:05:17]} ({White should play} 20. Nxc6 $11 Bxc6 21. Nd4) 20... e5 $15 {[%emt 0:00:49] [#] White must now prevent ...e4.} 21. g5 {[%emt 0:08:13]} e4 {[%emt 0:06:36]} 22. gxf6 {[%emt 0:00:27][%cal Od3a6] aiming for Bxa6!} exd3 {[%emt 0:02:30]} 23. Qxd3 {[%emt 0:00:53]} Rxf6 {[%emt 0:00:15] And now ...Bf5 would win.} 24. Ng3 {[%emt 0:02:27] Against Bf5} (24. Qxd5+ $2 Be6 25. Qd3 Bxb3 $19) 24... Qf7 {[%emt 0:03:25]} (24... Bh3 $17 {...d4 is the strong threat.} 25. Rf2 Qf7) 25. Nc5 {[%emt 0:09:18]} (25. f5 $1 $11 Nge5 26. Qd1) 25... d4 {[%emt 0:04:08]} (25... Bg4 $17 {Strongly threatening ...h5.} 26. b5 Nce7) 26. Nxd7 $11 {[%emt 0:09:38]} Qd5+ $2 {[%mdl 8192]} (26... Qxd7 $11 27. b5 Qd5+ 28. Qe4 Qxe4+ 29. Nxe4 Re6 30. Bxd4 (30. bxc6 dxe3 31. cxb7 Rb8 $15) 30... Nxd4) 27. Ne4 $18 Re6 28. Ndc5 ({Avoid the trap} 28. cxd4 $2 Rxe4 29. Kg1 Nh4 $19) 28... dxe3 $2 (28... Rae8 29. b5 (29. cxd4 Rxe4 30. Nxe4 Nxb4 $17) 29... Rxe4 30. Nxe4 Nb4 31. Qxd4 (31. cxb4 Rxe4 32. Kg1 Rxe3 $16) 31... Rxe4 32. Qxd5+ Nxd5) 29. Qxd5 {Weighted Error Value: White=0.28 (precise) /Black=0.39} 1-0